[Event "ESTCC 50 2019"]
[Site "Mali Losinj"]
[Date "2019.09.19"]
[Round "2.10"]
[White "Dusper, Hrvoje"]
[Black "Priehoda, Vitezslav"]
[Result "1-0"]
[ECO "B82"]
[WhiteElo "2221"]
[BlackElo "2352"]
[Annotator "NA"]
[PlyCount "61"]
[EventDate "2019.09.18"]
[EventType "team-tourn"]
[EventCountry "CRO"]
[SourceTitle "playchess.com"]
[Source "ChessBase"]
[SourceQuality "1"]
[WhiteTeam "Croatia"]
[BlackTeam "Czech Republic"]
[WhiteTeamCountry "CRO"]
[BlackTeamCountry "CZE"]
[TimeControl "40/5400+30:1800+30"]

1. e4 {[%emt 0:00:30]} c5 {[%emt 0:00:30]} 2. Nf3 {[%emt 0:00:30]} e6 {[%emt 0:00:00]} 3. d4 {[%emt 0:00:30]} cxd4 {[%emt 0:00:00]} 4. Nxd4 {[%emt 0:00:00]} a6 {[%emt 0:00:30]} 5. Nc3 {[%emt 0:01:00]} b5 {[%emt 0:00:30]} 6. a3 {[%emt 0:03:30]} Bb7 {[%emt 0:01:30]} 7. Bd3 {[%emt 0:03:30]} d6 {[%emt 0:08:30]} 8. O-O {[%emt 0:01:30]} Nf6 {[%emt 0:00:30]} 9. Kh1 {[%emt 0:01:30]} Be7 {[%emt 0:08:30]} 10. f4 {[%emt 0:02:30]} Nbd7 {[%emt 0:01:30]} 11. Qe2 {[%emt 0:01:30]} Nc5 {[%emt 0:16:30]} 12. b4 {[%emt 0:08:30]} Nxd3 {[%emt 0:00:30]} 13. cxd3 {[%emt 0:00:00]} O-O {[%emt 0:01:30]} 14. Bd2 {[%emt 0:03:00]} Nd7 {[%emt 0:10:30]} 15. Nb3 {[%emt 0:02:30]} Rb8 {[%emt 0:09:30]} 16. d4 {[%emt 0:06:30]} Nb6 {[%emt 0:00:30]} 17. Na5 {[%emt 0:01:30]} d5 {[%emt 0:01:30]} 18. f5 {[%emt 0:20:30]} exf5 {[%emt 0:08:30]} 19. exf5 {[%emt 0:04:30]} Ba8 {[%emt 0:03:30]} 20. Nb3 {[%emt 0:03:30]} Bf6 {[%emt 0:03:30]} 21. Qd3 {[%emt 0:05:30]} Nc4 {[%emt 0:02:30]} 22. Bf4 {[%emt 0:02:30]} Rb6 {[%emt 0:01:27]} 23. Nc5 {[%emt 0:00:30]} Re8 {[%emt 0:06:35]} 24. Rae1 {[%emt 0:01:30]} Nd6 {[%emt 0:04:37]} 25. Be5 {[%emt 0:05:37]} Ne4 {[%emt 0:00:22]} 26. N3xe4 {[%emt 0:01:35]} dxe4 {[%emt 0:00:11]} 27. Qg3 {[%emt 0:02:47]} Bxe5 {[%emt 0:04:50]} 28. dxe5 {[%emt 0:00:10]} h6 {[%emt 0:03:47]} 29. e6 {[%emt 0:06:35]} Qd6 {[%emt 0:01:07]} 30. Qg4 {[%emt 0:02:41]} fxe6 {[%emt 0:00:39]} 31. f6 {[%emt 0:00:00]} 1-0

[Event "ESTCC 50 2019"]
[Site "Mali Losinj"]
[Date "2019.09.19"]
[Round "2.11"]
[White "Konopka, Michal"]
[Black "Martic, Zlatko"]
[Result "0-1"]
[ECO "E63"]
[WhiteElo "2351"]
[BlackElo "2283"]
[Annotator "NA"]
[PlyCount "80"]
[EventDate "2019.09.18"]
[EventType "team-tourn"]
[EventCountry "CRO"]
[SourceTitle "playchess.com"]
[Source "ChessBase"]
[SourceQuality "1"]
[WhiteTeam "Czech Republic"]
[BlackTeam "Croatia"]
[WhiteTeamCountry "CZE"]
[BlackTeamCountry "CRO"]
[TimeControl "40/5400+30:1800+30"]

1. Nf3 {[%emt 0:00:30]} Nf6 {[%emt 0:00:30]} 2. c4 {[%emt 0:00:00]} g6 {[%emt 0:00:30]} 3. g3 {[%emt 0:00:00]} Bg7 {[%emt 0:00:00]} 4. Bg2 {[%emt 0:00:30]} O-O {[%emt 0:00:00]} 5. d4 {[%emt 0:00:00]} d6 {[%emt 0:00:30]} 6. O-O {[%emt 0:00:00]} Nc6 {[%emt 0:00:30]} 7. Nc3 {[%emt 0:00:30]} a6 {[%emt 0:00:30]} 8. b3 {[%emt 0:05:30]} Rb8 {[%emt 0:00:30]} 9. Nd5 {[%emt 0:07:30]} Nxd5 {[%emt 0:01:30]} 10. cxd5 {[%emt 0:00:00]} Nb4 {[%emt 0:00:30]} 11. Ne1 {[%emt 0:04:00]} c5 {[%emt 0:00:30]} 12. a3 {[%emt 0:26:30]} Bxd4 {[%emt 0:01:30]} 13. Bd2 {[%emt 0:07:30]} Bg4 {[%emt 0:13:30]} 14. Rb1 {[%emt 0:06:30]} Na2 {[%emt 0:16:30]} 15. h3 {[%emt 0:01:30]} Bf5 {[%emt 0:00:30]} 16. e4 {[%emt 0:00:30]} Bd7 {[%emt 0:00:00]} 17. Qc2 {[%emt 0:04:30]} Bb5 {[%emt 0:01:00]} 18. Nf3 {[%emt 0:07:30]} Bxf1 {[%emt 0:01:30]} 19. Rxf1 {[%emt 0:00:30]} Bg7 {[%emt 0:01:30]} 20. Qxa2 {[%emt 0:00:00]} b5 {[%emt 0:00:30]} 21. h4 {[%emt 0:01:00]} Qc7 {[%emt 0:05:30]} 22. Rc1 {[%emt 0:00:00]} a5 {[%emt 0:04:30]} 23. Be3 {[%emt 0:07:33]} Qb7 {[%emt 0:05:30]} 24. Qd2 {[%emt 0:01:58]} a4 {[%emt 0:07:30]} 25. b4 {[%emt 0:09:05]} cxb4 {[%emt 0:00:30]} 26. Qxb4 {[%emt 0:00:54]} Rfc8 {[%emt 0:00:30]} 27. Nd4 {[%emt 0:06:04]} Rxc1+ {[%emt 0:02:30]} 28. Bxc1 {[%emt 0:00:01]} Bxd4 {[%emt 0:02:30]} 29. Qxd4 {[%emt 0:00:04]} b4 {[%emt 0:00:30]} 30. e5 {[%emt 0:01:32]} Qc7 {[%emt 0:12:30]} 31. Bb2 {[%emt 0:00:49]} dxe5 {[%emt 0:00:30]} 32. Qxe5 {[%emt 0:01:42]} Qxe5 {[%emt 0:02:15]} 33. Bxe5 {[%emt 0:00:30]} Rb5 {[%emt 0:00:46]} 34. axb4 {[%emt 0:00:30]} a3 {[%emt 0:00:43]} 35. Bc3 {[%emt 0:00:30]} a2 {[%emt 0:00:39]} 36. Bf1 {[%emt 0:00:30]} Rxd5 {[%emt 0:05:08]} 37. Be2 {[%emt 0:00:09]} Rd2 {[%emt 0:00:15]} 38. Bxd2 {[%emt 0:00:51]} a1=Q+ {[%emt 0:00:18]} 39. Bf1 {[%emt 0:00:07]} Qb2 {[%emt 0:00:22]} 40. Be1 {[%emt 0:00:20]} Qc1 {[%emt 0:00:58]} 0-1

[Event "ESTCC 50 2019"]
[Site "Mali Losinj"]
[Date "2019.09.19"]
[Round "2.12"]
[White "Tirkajla, Boris"]
[Black "Spacek, Petr"]
[Result "0-1"]
[ECO "A03"]
[WhiteElo "2060"]
[BlackElo "2352"]
[Annotator "NA"]
[PlyCount "94"]
[EventDate "2019.09.18"]
[EventType "team-tourn"]
[EventCountry "CRO"]
[SourceTitle "playchess.com"]
[Source "ChessBase"]
[SourceQuality "1"]
[WhiteTeam "Croatia"]
[BlackTeam "Czech Republic"]
[WhiteTeamCountry "CRO"]
[BlackTeamCountry "CZE"]
[TimeControl "40/5400+30:1800+30"]

1. f4 {[%emt 0:00:30]} g6 {[%emt 0:03:30]} 2. Nf3 {[%emt 0:00:30]} Bg7 {[%emt 0:00:30]} 3. g3 {[%emt 0:00:00]} d5 {[%emt 0:02:30]} 4. Bg2 {[%emt 0:00:00]} Nf6 {[%emt 0:00:30]} 5. O-O {[%emt 0:00:30]} O-O {[%emt 0:00:30]} 6. d3 {[%emt 0:01:30]} b6 {[%emt 0:01:30]} 7. Nc3 {[%emt 0:04:30]} Bb7 {[%emt 0:01:30]} 8. e4 {[%emt 0:02:30]} dxe4 {[%emt 0:00:30]} 9. Ng5 {[%emt 0:00:30]} Nc6 {[%emt 0:16:30]} 10. Ngxe4 {[%emt 0:01:30]} Nxe4 {[%emt 0:04:30]} 11. Bxe4 {[%emt 0:03:30]} e6 {[%emt 0:02:30]} 12. Be3 {[%emt 0:02:30]} Rb8 {[%emt 0:01:30]} 13. Qf3 {[%emt 0:05:30]} Nd4 {[%emt 0:03:30]} 14. Qf2 {[%emt 0:00:30]} Nf5 {[%emt 0:04:30]} 15. Bxf5 {[%emt 0:02:30]} gxf5 {[%emt 0:06:30]} 16. h3 {[%emt 0:01:30]} c5 {[%emt 0:02:30]} 17. Kh2 {[%emt 0:01:30]} Rc8 {[%emt 0:05:30]} 18. Rg1 {[%emt 0:05:30]} Kh8 {[%emt 0:04:30]} 19. g4 {[%emt 0:02:30]} fxg4 {[%emt 0:00:30]} 20. Rxg4 {[%emt 0:00:30]} f5 {[%emt 0:00:30]} 21. Rgg1 {[%emt 0:11:30]} Bf6 {[%emt 0:04:30]} 22. Rad1 {[%emt 0:01:30]} Rg8 {[%emt 0:16:57]} 23. Rxg8+ {[%emt 0:06:30]} Qxg8 {[%emt 0:00:01]} 24. Rg1 {[%emt 0:00:30]} Qd8 {[%emt 0:00:20]} 25. Qe2 {[%emt 0:05:30]} Qd7 {[%emt 0:02:14]} 26. Bd2 {[%emt 0:07:30]} Qc6 {[%emt 0:02:12]} 27. Nd1 {[%emt 0:02:30]} Rg8 {[%emt 0:01:01]} 28. Qf1 {[%emt 0:04:30]} Rxg1 {[%emt 0:00:50]} 29. Qxg1 {[%emt 0:00:30]} Qf3 {[%emt 0:03:22]} 30. Nf2 {[%emt 0:05:30]} Bd4 {[%emt 0:01:07]} 31. Bc3 {[%emt 0:00:30]} Qxf4+ {[%emt 0:01:25]} 32. Qg3 {[%emt 0:00:30]} Qxg3+ {[%emt 0:01:07]} 33. Kxg3 {[%emt 0:00:00]} Kg7 {[%emt 0:03:13]} 34. Bxd4+ {[%emt 0:01:00]} cxd4 {[%emt 0:00:03]} 35. c3 {[%emt 0:00:30]} dxc3 {[%emt 0:00:40]} 36. bxc3 {[%emt 0:00:30]} e5 {[%emt 0:00:22]} 37. d4 {[%emt 0:00:30]} Kf6 {[%emt 0:00:14]} 38. Nd3 {[%emt 0:01:30]} f4+ {[%emt 0:01:48]} 39. Kg4 {[%emt 0:00:47]} Bc8+ {[%emt 0:00:16]} 40. Kh4 {[%emt 0:01:52]} exd4 {[%emt 0:00:23]} 41. cxd4 {[%emt 0:31:08]} Kf5 {[%emt 0:30:14]} 42. Nf2 {[%emt 0:00:14]} b5 {[%emt 0:00:31]} 43. Kh5 {[%emt 0:00:00]} Be6 {[%emt 0:00:00]} 44. a3 {[%emt 0:00:00]} a5 {[%emt 0:00:00]} 45. Nd3 {[%emt 0:00:00]} Bc4 {[%emt 0:00:00]} 46. Ne5 {[%emt 0:00:00]} f3 {[%emt 0:00:00]} 47. Kh4 {[%emt 0:00:00]} f2 {[%emt 0:00:00]} 0-1

[Event "ESTCC 50 2019"]
[Site "Mali Losinj"]
[Date "2019.09.19"]
[Round "2.13"]
[White "Ponce Navalon, Jose"]
[Black "Jackson, Sheila"]
[Result "0-1"]
[ECO "B52"]
[WhiteElo "2024"]
[BlackElo "2046"]
[Annotator "NA"]
[PlyCount "106"]
[EventDate "2019.09.18"]
[EventType "team-tourn"]
[EventCountry "CRO"]
[SourceTitle "playchess.com"]
[Source "ChessBase"]
[SourceQuality "1"]
[WhiteTeam "Spain"]
[BlackTeam "England"]
[WhiteTeamCountry "ESP"]
[BlackTeamCountry "ENG"]
[TimeControl "40/5400+30:1800+30"]

1. e4 {[%emt 0:00:30]} c5 {[%emt 0:00:30]} 2. Nf3 {[%emt 0:00:00]} Nc6 {[%emt 0:00:00]} 3. Bb5 {[%emt 0:00:00]} d6 {[%emt 0:00:00]} 4. O-O {[%emt 0:00:30]} Bd7 {[%emt 0:00:00]} 5. a4 {[%emt 0:01:30]} a6 {[%emt 0:06:00]} 6. Be2 {[%emt 0:05:30]} Nf6 {[%emt 0:00:30]} 7. Nc3 {[%emt 0:00:30]} g6 {[%emt 0:02:30]} 8. d4 {[%emt 0:00:30]} cxd4 {[%emt 0:00:30]} 9. Nxd4 {[%emt 0:00:30]} Bg7 {[%emt 0:00:30]} 10. Nb3 {[%emt 0:00:30]} O-O {[%emt 0:05:30]} 11. Bg5 {[%emt 0:09:30]} Be6 {[%emt 0:01:30]} 12. Qd2 {[%emt 0:00:30]} Re8 {[%emt 0:09:30]} 13. Ra3 {[%emt 0:03:30]} Rc8 {[%emt 0:01:30]} 14. Rd1 {[%emt 0:02:30]} Ne5 {[%emt 0:07:30]} 15. Bf4 {[%emt 0:18:30]} Qc7 {[%emt 0:11:30]} 16. Nd4 {[%emt 0:08:30]} Bc4 {[%emt 0:00:30]} 17. Bxe5 {[%emt 0:06:30]} dxe5 {[%emt 0:01:30]} 18. Nf3 {[%emt 0:00:30]} Red8 {[%emt 0:04:30]} 19. Qe1 {[%emt 0:01:30]} Bxe2 {[%emt 0:03:30]} 20. Rxd8+ {[%emt 0:00:00]} Rxd8 {[%emt 0:00:00]} 21. Qxe2 {[%emt 0:00:00]} e6 {[%emt 0:00:00]} 22. b4 {[%emt 0:04:30]} Bf8 {[%emt 0:01:30]} 23. Na2 {[%emt 0:03:30]} Nxe4 {[%emt 0:09:30]} 24. Qxe4 {[%emt 0:00:30]} Rd1+ {[%emt 0:00:00]} 25. Ne1 {[%emt 0:00:30]} Qxc2 {[%emt 0:03:00]} 26. Re3 {[%emt 0:05:30]} Qxa2 {[%emt 0:01:30]} 27. Qxb7 {[%emt 0:02:30]} Qxa4 {[%emt 0:00:30]} 28. Kf1 {[%emt 0:02:30]} Qb5+ {[%emt 0:05:30]} 29. Qxb5 {[%emt 0:00:30]} axb5 {[%emt 0:00:30]} 30. Rb3 {[%emt 0:01:30]} e4 {[%emt 0:02:30]} 31. Ke2 {[%emt 0:00:30]} Rc1 {[%emt 0:00:30]} 32. Rb2 {[%emt 0:01:30]} Rc4 {[%emt 0:02:30]} 33. Nc2 {[%emt 0:00:30]} h5 {[%emt 0:01:30]} 34. Kd1 {[%emt 0:01:30]} f5 {[%emt 0:00:30]} 35. Na3 {[%emt 0:00:30]} Rxb4 {[%emt 0:03:02]} 36. Rxb4 {[%emt 0:00:30]} Bxb4 {[%emt 0:00:07]} 37. Nxb5 {[%emt 0:00:00]} Kf7 {[%emt 0:01:30]} 38. Ke2 {[%emt 0:01:00]} Bc5 {[%emt 0:01:14]} 39. Nc3 {[%emt 0:00:30]} Bd4 {[%emt 0:03:22]} 40. Nb1 {[%emt 0:00:39]} Kf6 {[%emt 0:02:09]} 41. Nd2 {[%emt 0:31:06]} Bc3 {[%emt 0:30:32]} 42. Nc4 {[%emt 0:02:37]} g5 {[%emt 0:02:32]} 43. h3 {[%emt 0:05:40]} Bd4 {[%emt 0:00:31]} 44. Kf1 {[%emt 0:01:40]} Ke7 {[%emt 0:01:06]} 45. g4 {[%emt 0:02:03]} hxg4 {[%emt 0:05:35]} 46. hxg4 {[%emt 0:00:02]} Kd7 {[%emt 0:02:46]} 47. Ke2 {[%emt 0:01:48]} Kc6 {[%emt 0:00:23]} 48. Nd2 {[%emt 0:00:00]} Kd5 {[%emt 0:00:00]} 49. f3 {[%emt 0:00:00]} exf3+ {[%emt 0:00:00]} 50. Kxf3 {[%emt 0:00:00]} Bc3 {[%emt 0:00:00]} 51. Nb3 {[%emt 0:00:00]} f4 {[%emt 0:00:00]} 52. Ke2 {[%emt 0:00:00]} e5 {[%emt 0:00:00]} 53. Kd3 {[%emt 0:00:00]} Bb4 {[%emt 0:00:00]} 0-1

[Event "ESTCC 50 2019"]
[Site "Mali Losinj"]
[Date "2019.09.19"]
[Round "2.14"]
[White "Mashayekh, Majid"]
[Black "Pastor Alonso De Prado, Alberto"]
[Result "0-1"]
[ECO "D53"]
[WhiteElo "1875"]
[BlackElo "2010"]
[Annotator "NA"]
[PlyCount "58"]
[EventDate "2019.09.18"]
[EventType "team-tourn"]
[EventCountry "CRO"]
[SourceTitle "playchess.com"]
[Source "ChessBase"]
[SourceQuality "1"]
[WhiteTeam "England"]
[BlackTeam "Spain"]
[WhiteTeamCountry "ENG"]
[BlackTeamCountry "ESP"]
[TimeControl "40/5400+30:1800+30"]

1. d4 {[%emt 0:00:30]} d5 {[%emt 0:01:30]} 2. Nf3 {[%emt 0:00:00]} Nf6 {[%emt 0:00:30]} 3. c4 {[%emt 0:00:00]} e6 {[%emt 0:00:30]} 4. Nc3 {[%emt 0:01:30]} Be7 {[%emt 0:00:00]} 5. Bg5 {[%emt 0:00:30]} h6 {[%emt 0:00:00]} 6. Bh4 {[%emt 0:01:30]} O-O {[%emt 0:00:30]} 7. Qc2 {[%emt 0:02:30]} b6 {[%emt 0:13:30]} 8. cxd5 {[%emt 0:03:30]} exd5 {[%emt 0:00:00]} 9. e3 {[%emt 0:00:30]} c5 {[%emt 0:03:00]} 10. dxc5 {[%emt 0:06:30]} bxc5 {[%emt 0:00:30]} 11. Rd1 {[%emt 0:01:30]} Be6 {[%emt 0:00:30]} 12. Be2 {[%emt 0:00:30]} Nc6 {[%emt 0:03:30]} 13. a3 {[%emt 0:02:30]} Qa5 {[%emt 0:17:30]} 14. O-O {[%emt 0:02:30]} Rfd8 {[%emt 0:00:30]} 15. Bg3 {[%emt 0:11:30]} Rac8 {[%emt 0:05:30]} 16. Bb5 {[%emt 0:10:30]} Ne4 {[%emt 0:16:30]} 17. Nxe4 {[%emt 0:22:30]} Qxb5 {[%emt 0:00:30]} 18. Nc3 {[%emt 0:01:30]} Qb7 {[%emt 0:02:30]} 19. Qe2 {[%emt 0:01:30]} d4 {[%emt 0:09:30]} 20. exd4 {[%emt 0:10:40]} Nxd4 {[%emt 0:04:57]} 21. Nxd4 {[%emt 0:05:05]} cxd4 {[%emt 0:00:18]} 22. Ne4 {[%emt 0:01:05]} Bc4 {[%emt 0:00:40]} 23. Qf3 {[%emt 0:01:30]} Qxb2 {[%emt 0:01:10]} 24. Rd2 {[%emt 0:00:49]} Qxa3 {[%emt 0:00:24]} 25. Qxa3 {[%emt 0:01:29]} Bxa3 {[%emt 0:00:13]} 26. Ra1 {[%emt 0:00:54]} Bb4 {[%emt 0:00:22]} 27. Rdd1 {[%emt 0:00:18]} a5 {[%emt 0:00:16]} 28. f3 {[%emt 0:00:56]} f5 {[%emt 0:01:02]} 29. Nf2 {[%emt 0:00:41]} Be2 {[%emt 0:00:21]} 0-1

[Event "ESTCC 50 2019"]
[Site "Mali Losinj"]
[Date "2019.09.19"]
[Round "2.15"]
[White "Ruiz Bellon, Manuel"]
[Black "Wood, Peter R"]
[Result "1-0"]
[ECO "A04"]
[WhiteElo "1973"]
[BlackElo "1884"]
[Annotator "NA"]
[PlyCount "55"]
[EventDate "2019.09.18"]
[EventType "team-tourn"]
[EventCountry "CRO"]
[SourceTitle "playchess.com"]
[Source "ChessBase"]
[SourceQuality "1"]
[WhiteTeam "Spain"]
[BlackTeam "England"]
[WhiteTeamCountry "ESP"]
[BlackTeamCountry "ENG"]
[TimeControl "40/5400+30:1800+30"]

1. Nf3 {[%emt 0:00:30]} e6 {[%emt 0:00:30]} 2. g3 {[%emt 0:00:00]} b6 {[%emt 0:02:30]} 3. Bg2 {[%emt 0:00:00]} Bb7 {[%emt 0:00:30]} 4. d3 {[%emt 0:00:30]} d5 {[%emt 0:01:30]} 5. e4 {[%emt 0:00:30]} Nf6 {[%emt 0:10:30]} 6. e5 {[%emt 0:03:30]} Nfd7 {[%emt 0:00:30]} 7. O-O {[%emt 0:00:30]} Be7 {[%emt 0:00:30]} 8. d4 {[%emt 0:03:30]} c5 {[%emt 0:02:30]} 9. c3 {[%emt 0:00:30]} Nc6 {[%emt 0:01:30]} 10. Re1 {[%emt 0:02:30]} h6 {[%emt 0:05:30]} 11. h4 {[%emt 0:01:30]} Qc7 {[%emt 0:03:30]} 12. Bf4 {[%emt 0:05:30]} O-O-O {[%emt 0:07:30]} 13. a4 {[%emt 0:07:30]} c4 {[%emt 0:06:30]} 14. Na3 {[%emt 0:05:30]} Ba6 {[%emt 0:10:30]} 15. Nd2 {[%emt 0:05:30]} Na5 {[%emt 0:02:30]} 16. b4 {[%emt 0:08:30]} cxb3 {[%emt 0:00:30]} 17. Nxb3 {[%emt 0:00:30]} Nc4 {[%emt 0:08:30]} 18. Nxc4 {[%emt 0:04:30]} Bxc4 {[%emt 0:01:30]} 19. Nd2 {[%emt 0:02:30]} Kb7 {[%emt 0:06:30]} 20. Nxc4 {[%emt 0:04:30]} Qxc4 {[%emt 0:00:30]} 21. Bf1 {[%emt 0:05:30]} Qc7 {[%emt 0:00:30]} 22. a5 {[%emt 0:04:30]} Nb8 {[%emt 0:06:30]} 23. Qa4 {[%emt 0:03:30]} g5 {[%emt 0:05:33]} 24. axb6 {[%emt 0:02:30]} axb6 {[%emt 0:00:18]} 25. hxg5 {[%emt 0:01:30]} Bxg5 {[%emt 0:01:40]} 26. Bxg5 {[%emt 0:01:30]} hxg5 {[%emt 0:00:05]} 27. Qa8+ {[%emt 0:01:30]} Kc8 {[%emt 0:00:09]} 28. Ra7 {[%emt 0:01:30]} 1-0

[Event "ESTCC 50 2019"]
[Site "Mali Losinj"]
[Date "2019.09.19"]
[Round "2.16"]
[White "Denning, Julie L"]
[Black "Rodriguez Bernal, Herman"]
[Result "0-1"]
[ECO "E76"]
[WhiteElo "1629"]
[BlackElo "1735"]
[Annotator "NA"]
[PlyCount "44"]
[EventDate "2019.09.18"]
[EventType "team-tourn"]
[EventCountry "CRO"]
[SourceTitle "playchess.com"]
[Source "ChessBase"]
[SourceQuality "1"]
[WhiteTeam "England"]
[BlackTeam "Spain"]
[WhiteTeamCountry "ENG"]
[BlackTeamCountry "ESP"]
[TimeControl "40/5400+30:1800+30"]

1. d4 {[%emt 0:00:30]} Nf6 {[%emt 0:01:30]} 2. c4 {[%emt 0:00:00]} d6 {[%emt 0:02:30]} 3. Nc3 {[%emt 0:01:00]} g6 {[%emt 0:01:30]} 4. e4 {[%emt 0:01:30]} Bg7 {[%emt 0:00:30]} 5. f4 {[%emt 0:03:30]} c6 {[%emt 0:11:30]} 6. Nf3 {[%emt 0:01:30]} Bg4 {[%emt 0:06:30]} 7. h3 {[%emt 0:02:30]} Bxf3 {[%emt 0:00:30]} 8. Qxf3 {[%emt 0:06:30]} Qb6 {[%emt 0:07:30]} 9. Qf2 {[%emt 0:02:30]} Na6 {[%emt 0:06:30]} 10. Be3 {[%emt 0:02:30]} Qb4 {[%emt 0:04:30]} 11. Bd3 {[%emt 0:01:30]} Rd8 {[%emt 0:08:30]} 12. O-O {[%emt 0:02:30]} O-O {[%emt 0:01:30]} 13. Rab1 {[%emt 0:03:30]} e5 {[%emt 0:04:30]} 14. fxe5 {[%emt 0:12:30]} dxe5 {[%emt 0:01:30]} 15. d5 {[%emt 0:00:00]} Nh5 {[%emt 0:04:30]} 16. g4 {[%emt 0:05:00]} Nf4 {[%emt 0:01:30]} 17. Bxf4 {[%emt 0:07:30]} exf4 {[%emt 0:00:00]} 18. Qc2 {[%emt 0:00:30]} Qb6+ {[%emt 0:01:00]} 19. Kh1 {[%emt 0:03:30]} Qe3 {[%emt 0:02:30]} 20. Be2 {[%emt 0:14:30]} Qxh3+ {[%emt 0:00:30]} 21. Kg1 {[%emt 0:00:30]} Bd4+ {[%emt 0:00:30]} 22. Rf2 {[%emt 0:00:30]} Qg3+ {[%emt 0:00:30]} 0-1

[Event "ESTCC 50 2019"]
[Site "Mali Losinj"]
[Date "2019.09.19"]
[Round "2.17"]
[White "Druckenthaner, Andreas"]
[Black "Lauritzen, Einar"]
[Result "1/2-1/2"]
[ECO "B20"]
[WhiteElo "2283"]
[BlackElo "1990"]
[Annotator "NA"]
[PlyCount "60"]
[EventDate "2019.09.18"]
[EventType "team-tourn"]
[EventCountry "CRO"]
[SourceTitle "playchess.com"]
[Source "ChessBase"]
[SourceQuality "1"]
[WhiteTeam "Austria"]
[BlackTeam "Norway"]
[WhiteTeamCountry "AUT"]
[BlackTeamCountry "NOR"]
[TimeControl "40/5400+30:1800+30"]

1. e4 {[%emt 0:00:30]} c5 {[%emt 0:00:30]} 2. b3 {[%emt 0:00:00]} d6 {[%emt 0:01:30]} 3. Bb2 {[%emt 0:00:00]} Nf6 {[%emt 0:00:30]} 4. Nc3 {[%emt 0:00:30]} Nc6 {[%emt 0:01:30]} 5. f4 {[%emt 0:01:30]} g6 {[%emt 0:01:30]} 6. Bb5 {[%emt 0:04:30]} Bd7 {[%emt 0:00:30]} 7. Nd5 {[%emt 0:02:30]} Bg7 {[%emt 0:00:30]} 8. Nxf6+ {[%emt 0:00:30]} Bxf6 {[%emt 0:03:30]} 9. Bxf6 {[%emt 0:00:30]} exf6 {[%emt 0:00:00]} 10. Ne2 {[%emt 0:08:30]} O-O {[%emt 0:09:00]} 11. O-O {[%emt 0:00:30]} f5 {[%emt 0:01:30]} 12. d3 {[%emt 0:12:30]} Qf6 {[%emt 0:07:30]} 13. Qd2 {[%emt 0:05:30]} Rfe8 {[%emt 0:02:30]} 14. Ng3 {[%emt 0:10:30]} h5 {[%emt 0:10:30]} 15. Rfe1 {[%emt 0:09:30]} Rad8 {[%emt 0:01:30]} 16. c3 {[%emt 0:07:30]} h4 {[%emt 0:01:30]} 17. Nf1 {[%emt 0:00:30]} a6 {[%emt 0:04:30]} 18. Bc4 {[%emt 0:02:30]} b5 {[%emt 0:01:30]} 19. Bd5 {[%emt 0:01:30]} b4 {[%emt 0:00:30]} 20. c4 {[%emt 0:04:30]} Nd4 {[%emt 0:06:30]} 21. Ne3 {[%emt 0:02:30]} Rb8 {[%emt 0:05:30]} 22. Qf2 {[%emt 0:01:30]} Kg7 {[%emt 0:01:30]} 23. Rf1 {[%emt 0:05:07]} a5 {[%emt 0:03:30]} 24. Rae1 {[%emt 0:01:41]} a4 {[%emt 0:00:30]} 25. e5 {[%emt 0:03:19]} dxe5 {[%emt 0:01:30]} 26. fxe5 {[%emt 0:00:06]} Qxe5 {[%emt 0:05:30]} 27. Ng4 {[%emt 0:07:54]} Qd6 {[%emt 0:02:30]} 28. Qxh4 {[%emt 0:00:27]} Rh8 {[%emt 0:00:30]} 29. Qe7 {[%emt 0:00:20]} Qxe7 {[%emt 0:01:30]} 30. Rxe7 {[%emt 0:00:07]} Be6 {[%emt 0:01:30]} 1/2-1/2

[Event "ESTCC 50 2019"]
[Site "Mali Losinj"]
[Date "2019.09.19"]
[Round "2.18"]
[White "Olsen, Oystein Leif"]
[Black "Opl, Klaus"]
[Result "0-1"]
[ECO "D48"]
[WhiteElo "1974"]
[BlackElo "2207"]
[Annotator "NA"]
[PlyCount "54"]
[EventDate "2019.09.18"]
[EventType "team-tourn"]
[EventCountry "CRO"]
[SourceTitle "playchess.com"]
[Source "ChessBase"]
[SourceQuality "1"]
[WhiteTeam "Norway"]
[BlackTeam "Austria"]
[WhiteTeamCountry "NOR"]
[BlackTeamCountry "AUT"]
[TimeControl "40/5400+30:1800+30"]

1. d4 {[%emt 0:00:30]} d5 {[%emt 0:00:30]} 2. c4 {[%emt 0:00:00]} c6 {[%emt 0:00:30]} 3. Nf3 {[%emt 0:00:00]} Nf6 {[%emt 0:00:30]} 4. Nc3 {[%emt 0:00:30]} e6 {[%emt 0:00:00]} 5. e3 {[%emt 0:00:30]} Nbd7 {[%emt 0:00:00]} 6. Bd3 {[%emt 0:00:00]} dxc4 {[%emt 0:00:30]} 7. Bxc4 {[%emt 0:00:00]} b5 {[%emt 0:00:30]} 8. Bd3 {[%emt 0:00:30]} Bb7 {[%emt 0:00:30]} 9. O-O {[%emt 0:00:00]} a6 {[%emt 0:00:30]} 10. e4 {[%emt 0:01:00]} c5 {[%emt 0:00:30]} 11. d5 {[%emt 0:02:30]} c4 {[%emt 0:01:30]} 12. dxe6 {[%emt 0:00:30]} fxe6 {[%emt 0:00:30]} 13. Bc2 {[%emt 0:03:30]} Bc5 {[%emt 0:01:30]} 14. Nd4 {[%emt 0:05:30]} Qb6 {[%emt 0:02:30]} 15. Be3 {[%emt 0:01:30]} O-O-O {[%emt 0:02:30]} 16. a4 {[%emt 0:05:30]} Ne5 {[%emt 0:05:30]} 17. axb5 {[%emt 0:08:30]} Bxd4 {[%emt 0:04:30]} 18. Na4 {[%emt 0:07:30]} Qd6 {[%emt 0:02:30]} 19. bxa6 {[%emt 0:01:30]} Bc6 {[%emt 0:14:30]} 20. Bxd4 {[%emt 0:29:30]} Qxd4 {[%emt 0:00:30]} 21. Qb1 {[%emt 0:02:30]} Nd3 {[%emt 0:01:30]} 22. b4 {[%emt 0:02:30]} Qxe4 {[%emt 0:06:30]} 23. f3 {[%emt 0:00:30]} Qe3+ {[%emt 0:02:30]} 24. Kh1 {[%emt 0:00:30]} Nf2+ {[%emt 0:03:30]} 25. Rxf2 {[%emt 0:00:30]} Qxf2 {[%emt 0:00:00]} 26. b5 {[%emt 0:01:30]} Bxf3 {[%emt 0:03:00]} 27. gxf3 {[%emt 0:00:30]} Rd2 {[%emt 0:01:30]} 0-1